bitfinex/quotes_ETHUSD_20260208
["timestamp","ask_amount","ask_price","bid_price","bid_amount"]
[1770517181687,2.22552123,2101.9,2101.5,0.001]
[1770517182071,2.22752123,2101.9,2101.5,0.001]
[1770517182271,0.99565161,2101.8,2101.5,0.001]
[1770517183408,0.99565161,2101.6,2101.5,0.001]
[1770517187787,1.18951325,2101.7,2101.5,0.001]
[1770517188308,0.002,2101.9,2101.5,0.001]
[1770517188480,1.19140474,2101.9,2101.5,0.99210792]
[1770517188905,0.002,2101.9,2101.5,0.001]
[1770517189272,0.002,2101.9,2101.5,0.99210792]
[1770517191112,0.002,2101.9,2101.6,0.99110792]
[1770517191282,0.002,2102.1,2101.5,1.19057846]
[1770517191481,0.002,2102.1,2101.6,0.99110792]
[1770517193112,0.002,2102.1,2101.8,0.99110792]
[1770517195310,0.002,2102.1,2101.8,2.18052738]
[1770517195500,0.002,2101.9,2101.8,2.18052738]
[1770517195704,0.002,2102.1,2101.9,0.99110792]
[1770517196019,0.002,2102.4,2102.2,0.99110792]
[1770517197196,0.00600001,2102.6,2101.9,0.99110792]
[1770517199194,0.00600001,2102.6,2102.1,0.99110792]
[1770517199400,0.00600001,2102.6,2102.0,0.99110792]
[1770517200192,0.00600001,2102.6,2102.1,0.99110792]
[1770517200599,0.00600001,2102.6,2102.3,0.99110792]
[1770517200910,0.00600001,2102.6,2101.9,1.18937424]
[1770517200911,0.00600001,2102.6,2102.1,0.99110792]
[1770517201110,0.002,2102.8,2102.2,1.18923033]
[1770517201310,0.00600001,2102.6,2102.3,0.99110792]
[1770517201923,0.002,2102.8,2102.3,0.99110792]
[1770517202221,0.00600001,2102.7,2102.3,0.99110792]
[1770517203503,0.00600001,2102.7,2102.4,0.99110792]
[1770517204239,0.002,2102.8,2102.5,0.99110792]
[1770517204403,0.002,2103.2,2103.0,4.08098084]
[1770517204717,0.002,2103.3,2103.1,0.99110792]
[1770517205105,0.002,2103.3,2102.9,0.99110792]
[1770517205502,0.002,2103.3,2103.1,0.9688324]
[1770517206122,0.002,2103.3,2102.9,2.15765929]
[1770517206624,0.002,2103.3,2103.0,0.9688324]
[1770517207024,0.002,2103.1,2103.0,0.9688324]
[1770517207905,0.002,2103.1,2103.0,2.15761033]
[1770517208102,0.002,2103.3,2103.1,0.9688324]
[1770517208320,11.27827659,2103.9,2103.1,0.9688324]
[1770517208513,1.1882459,2104.0,2103.1,0.9688324]
[1770517209227,1.19013771,2104.2,2103.1,0.9688324]
[1770517209426,2.16233516,2104.2,2103.1,0.9688324]
[1770517209809,1.19013771,2104.2,2103.1,0.9688324]
[1770517210009,0.97219745,2104.1,2103.3,0.9688324]
[1770517210815,0.34615795,2104.0,2103.3,0.9688324]
[1770517211005,0.97219745,2104.1,2103.3,0.9688324]
[1770517211204,5.27111855,2104.2,2103.3,0.9688324]
[1770517211404,0.97219745,2104.1,2103.3,0.9688324]
[1770517211732,0.33345987,2104.4,2103.2,1.18866489]
[1770517212103,0.33345987,2104.4,2103.7,0.9688324]
[1770517212303,0.33345987,2104.4,2102.9,4.75530406]
[1770517212304,1.5619198,2104.4,2103.5,0.9688324]
[1770517212503,6.58284097,2104.4,2103.6,0.92735031]
[1770517212703,4.08098084,2104.2,2103.0,0.92735031]
[1770517212928,1.5619198,2104.4,2103.5,2.1158135]
[1770517213114,1.5619198,2104.4,2103.1,4.08098084]
[1770517213115,1.5619198,2104.4,2103.6,0.92735031]
[1770517213319,0.33345987,2104.4,2103.7,0.92735031]
[1770517213517,0.33345987,2104.4,2104.0,0.92735031]
[1770517214425,0.33345987,2104.4,2104.1,0.92735031]
[1770517215206,0.1183201,2104.8,2104.3,0.92735031]
[1770517215405,0.37569907,2105.4,2104.7,0.92735031]
[1770517215939,0.37569907,2105.4,2105.0,0.92735031]
[1770517216477,1.18697179,2106.2,2105.3,5.00833115]
[1770517216642,1.67301501,2106.2,2105.3,0.92735031]
[1770517216932,0.93994033,2105.7,2104.4,0.92735031]
[1770517217108,0.93994033,2105.7,2104.5,1.18792316]
[1770517217310,0.48604322,2105.6,2104.7,0.92735031]
[1770517218223,1.18736642,2105.5,2104.7,0.92735031]
[1770517218615,0.48604322,2105.4,2104.7,0.92735031]
[1770517218812,0.48604322,2105.4,2104.7,1.18781293]
[1770517219139,0.48604322,2105.4,2104.6,0.92735031]
[1770517219342,0.48604322,2105.4,2104.7,0.92735031]
[1770517220546,1.67348921,2105.4,2104.7,0.92735031]
[1770517221753,1.67348921,2105.4,2104.4,0.92735031]
[1770517221927,0.93994033,2105.3,2104.4,0.92735031]
[1770517222461,1.71392785,2105.4,2104.4,0.92735031]
[1770517222659,1.67348921,2105.4,2104.4,0.92735031]
[1770517222815,1.67348921,2105.4,2104.5,0.92735031]
[1770517223990,0.93994033,2105.3,2104.3,0.92735031]
[1770517224315,0.48604322,2105.2,2104.5,0.92735031]
[1770517224810,1.67362243,2105.2,2104.5,0.92735031]
[1770517225035,1.67362243,2105.2,2104.5,2.11526651]
[1770517225231,0.48604322,2105.2,2104.6,0.92735031]
[1770517225625,1.6735842,2105.2,2104.6,0.92735031]
[1770517227735,1.18739644,2105.5,2104.7,0.92735031]
[1770517229864,1.18719726,2105.8,2104.8,0.92735031]
[1770517230066,2.12713759,2105.8,2104.8,0.92735031]
[1770517231650,0.48604322,2105.7,2105.0,0.92735031]
[1770517231851,0.002,2105.3,2105.0,0.92735031]
[1770517232733,0.48804322,2105.3,2104.9,0.001]
[1770517232960,0.48804322,2105.3,2104.9,0.92835031]
[1770517233839,0.002,2105.3,2105.0,0.92735031]
[1770517235040,1.1871835,2105.9,2105.0,0.92735031]
[1770517235246,0.48804322,2105.8,2105.0,0.92735031]
[1770517235848,0.48804322,2105.8,2105.2,0.99293629]
[1770517236053,1.67524475,2105.8,2105.2,0.99293629]
[1770517236487,0.48804322,2105.8,2105.2,0.99293629]
[1770517236682,1.67524367,2105.8,2105.2,0.99293629]
[1770517236989,0.48804322,2105.8,2105.2,0.99293629]
[1770517237763,0.98850751,2106.2,2105.2,0.99293629]
[1770517237764,0.002,2106.2,2105.3,5.37007951]
[1770517237965,0.49004322,2106.1,2105.6,0.99293629]
[1770517239018,0.002,2106.2,2105.6,0.99293629]
[1770517239162,0.49004322,2106.1,2105.6,0.99293629]
[1770517239995,0.49004322,2106.1,2105.7,0.99293629]
[1770517240791,0.49004322,2106.1,2105.4,1.18736813]
[1770517240959,0.49004322,2106.1,2105.5,2.18029449]
[1770517241514,0.49004322,2106.1,2105.6,1.18730799]
[1770517241967,0.49004322,2106.1,2105.7,0.99293629]
[1770517242369,0.49004322,2106.1,2105.5,1.18733386]
[1770517242554,0.49004322,2106.1,2105.5,2.18027015]
[1770517242763,0.49004322,2106.1,2105.7,0.99293629]
[1770517244170,0.49004322,2106.1,2105.7,2.18018816]
[1770517244368,0.002,2106.2,2105.8,0.99293629]
[1770517244591,0.49204322,2106.2,2105.7,1.18725187]
[1770517245095,0.49204322,2106.2,2105.7,2.18018816]
[1770517245262,0.002,2105.9,2105.4,2.18035065]
[1770517245469,0.002,2105.9,2105.5,1.18736102]
[1770517245782,0.49004322,2105.8,2105.5,2.18029731]
[1770517246177,0.002,2106.1,2105.6,0.99293629]
[1770517248196,0.002,2106.1,2105.7,2.18018993]
[1770517249406,0.002,2106.1,2105.8,0.99293629]
[1770517250208,0.002,2106.1,2105.9,0.99293629]
[1770517251481,0.002,2106.1,2105.6,1.18728168]
[1770517251677,0.002,2106.1,2105.5,1.18732598]
[1770517251880,0.002,2106.1,2105.5,1.18736079]
[1770517252179,0.98850751,2106.1,2105.3,5.74278705]
[1770517253398,0.98850751,2106.1,2105.3,2.1804155]
[1770517253399,2.17554333,2106.1,2105.3,2.1804155]
[1770517254202,2.17554333,2106.1,2105.4,2.18032344]
[1770517254203,0.002,2106.1,2105.4,2.18032344]
[1770517254901,0.002,2106.1,2105.5,0.99293629]
[1770517256291,0.002,2106.1,2105.6,1.18731003]
[1770517258897,0.002,2105.9,2105.6,1.18731003]
[1770517259389,0.002,2106.1,2105.6,5.25162318]
[1770517260611,0.002,2106.2,2106.0,4.06431315]
[1770517260824,5.7326806,2107.0,2106.4,4.06431315]
[1770517261007,1.18661954,2106.9,2106.4,4.06431315]
[1770517261216,10.09,2107.3,2106.4,0.99293629]
[1770517261554,5.7316972,2107.4,2106.6,4.06431315]
[1770517261692,4.74518969,2107.4,2106.6,4.06431315]
[1770517261883,0.98650751,2107.0,2105.7,0.99293629]
[1770517262093,1.02694615,2106.5,2105.6,5.25162131]
[1770517262486,0.98650751,2106.8,2105.8,4.06431315]
[1770517262692,2.17319314,2106.8,2106.2,4.06431315]
[1770517262898,2.17319314,2106.8,2105.8,5.05724944]
[1770517262899,1.02694615,2106.7,2105.8,5.05724944]
[1770517263190,1.02694615,2106.7,2105.8,4.06431315]
[1770517263518,0.98650751,2106.4,2105.5,0.001]
[1770517263718,0.98650751,2106.4,2105.6,4.06431315]
[1770517264718,2.17342295,2106.3,2105.5,0.001]
[1770517265804,2.17342295,2106.3,2105.5,1.18836438]
[1770517266013,1.18691544,2106.3,2105.7,4.06431315]
[1770517266199,4.74724075,2106.5,2105.7,4.06431315]
[1770517266596,0.92435287,2106.2,2105.5,0.001]
[1770517267323,1.18691544,2106.3,2105.5,5.01485567]
[1770517267510,1.18691544,2106.3,2105.7,4.06431315]
[1770517267816,0.92435287,2106.2,2105.5,4.06531315]
[1770517269165,0.92435287,2106.2,2105.2,1.18852475]
[1770517269166,0.92435287,2106.0,2105.2,0.001]
[1770517269453,0.92435287,2106.0,2105.1,4.06431315]
[1770517269621,0.92435287,2106.0,2105.3,4.06431315]
[1770517269938,0.92435287,2106.0,2105.0,0.001]
[1770517270126,0.92435287,2106.0,2105.3,1.1874767]
[1770517270325,1.18702815,2106.1,2105.4,5.25172677]
[1770517270642,1.18701313,2106.2,2105.4,4.06431315]
[1770517271219,1.18701313,2106.2,2105.4,5.25172568]
[1770517271524,2.111366,2106.2,2105.4,0.001]
[1770517272224,0.92435287,2106.1,2105.4,0.001]
[1770517272420,1.18701313,2106.2,2105.4,1.1884227]
[1770517272724,1.18701313,2106.2,2105.5,4.06431315]
[1770517272922,1.18694661,2106.3,2105.5,4.06431315]
[1770517273137,1.18689279,2106.4,2105.5,5.25165397]
[1770517273830,0.99792521,2106.3,2105.4,1.18841256]
[1770517274353,0.99792521,2106.3,2105.4,1.18839365]
[1770517274510,0.99792521,2106.3,2105.5,5.25165945]
[1770517274712,0.002,2106.5,2105.7,4.06431315]
[1770517274913,1.18880635,2106.5,2105.7,4.06431315]
[1770517275327,1.18880635,2106.5,2105.7,1.18725364]
[1770517275527,0.002,2106.5,2105.7,1.18725364]
[1770517275916,0.002,2106.5,2105.7,2.17487506]
[1770517277631,0.002,2106.5,2105.5,4.74944953]
[1770517277825,0.002,2106.5,2105.4,0.001]
[1770517277826,0.99792521,2106.2,2105.4,0.001]
[1770517278245,10.11345944,2106.7,2105.4,0.001]
[1770517278246,1.03836385,2106.9,2105.8,1.18719726]
[1770517278416,0.99792521,2106.9,2105.7,1.18722478]
[1770517278619,0.99792521,2106.7,2105.7,1.18722478]
[1770517278819,0.99792521,2106.7,2105.5,0.98762142]
[1770517279052,0.99792521,2106.7,2105.7,1.18724728]
[1770517279345,1.18674641,2106.6,2105.7,0.98762142]
[1770517279836,1.18663375,2106.8,2105.7,0.98762142]
[1770517280224,0.99792521,2106.7,2105.7,0.98762142]
[1770517283536,1.18674641,2106.6,2105.7,2.17485025]
[1770517283718,2.18467162,2106.6,2105.6,1.18727363]
[1770517283918,0.99792521,2106.5,2105.6,1.18730175]
[1770517284554,0.99792521,2106.5,2105.7,0.001]
[1770517285050,0.99992521,2106.5,2105.7,0.001]
[1770517285227,0.002,2106.5,2105.8,0.98762142]
[1770517285626,0.002,2106.5,2105.9,1.18714088]
[1770517286825,0.002,2106.5,2106.0,0.98762142]
[1770517288063,0.002,2106.5,2106.2,0.98762142]
[1770517289262,0.002,2106.5,2106.1,1.18702815]
[1770517289263,1.18642698,2107.2,2106.1,1.18702815]
[1770517289432,1.18642698,2107.2,2106.2,0.98762142]
[1770517289751,2.18428519,2107.3,2106.2,0.98762142]
[1770517289957,1.51790691,2107.4,2106.2,0.98762142]
[1770517290150,1.51790691,2107.4,2106.4,0.98762142]
[1770517290868,0.33159897,2107.4,2106.4,0.98762142]
[1770517291754,0.33159897,2107.4,2106.3,1.18691544]
[1770517291755,0.27159897,2107.4,2106.6,0.98762142]
[1770517291962,1.457895,2107.4,2106.6,0.98762142]
[1770517292259,1.457895,2107.4,2106.7,1.18669008]
[1770517292457,1.457895,2107.4,2106.6,0.98762142]
[1770517292458,1.457895,2107.4,2106.6,2.1743279]
[1770517293366,0.27159897,2107.4,2106.7,0.98762142]
[1770517294034,0.27159897,2107.4,2106.7,1.18664622]
[1770517294237,0.27159897,2107.4,2106.7,1.18668261]
[1770517294238,1.45792031,2107.4,2106.7,1.18668261]
[1770517294440,1.45792031,2107.4,2106.6,1.18673901]
[1770517295163,1.45792031,2107.4,2106.7,1.1866848]
[1770517295344,1.45792031,2107.4,2106.5,4.74718646]
[1770517295660,1.45792031,2107.4,2106.9,0.91577933]
[1770517295661,0.27159897,2107.4,2106.9,0.91577933]
[1770517296167,0.27159897,2107.4,2106.9,1.18657743]
[1770517296352,0.27159897,2107.4,2107.0,4.97693846]
[1770517296552,1.18584574,2108.2,2107.1,0.91577933]
[1770517298068,0.002,2107.2,2107.1,2.10224413]
[1770517298367,2.10466121,2108.3,2107.2,0.91577933]
[1770517298550,0.002,2107.4,2107.2,0.91577933]
[1770517299456,0.002,2107.4,2107.1,1.1864648]
[1770517299842,0.002,2107.4,2107.1,2.10224413]
[1770517300063,0.002,2107.4,2107.3,1.1863522]
[1770517300274,2.10460264,2108.4,2107.4,0.91577933]
[1770517300838,1.18576964,2108.4,2107.4,0.91577933]
[1770517301045,0.918833,2108.3,2107.4,0.91577933]
[1770517301243,0.918833,2108.3,2107.3,1.1863522]
[1770517301554,0.918833,2108.3,2107.1,2.10220738]
[1770517301862,0.918833,2108.3,2107.2,1.18639037]
[1770517302267,0.918833,2108.1,2107.0,1.18649404]
[1770517302444,0.918833,2108.1,2106.7,1.1866564]
[1770517302649,0.918833,2108.1,2106.8,1.18659588]
[1770517302837,0.918833,2108.1,2106.8,0.91577933]
[1770517303042,0.918833,2108.1,2107.1,1.18645194]
[1770517303561,0.918833,2108.1,2107.1,2.10223127]
[1770517304146,1.18595825,2108.0,2107.1,2.10223127]
[1770517305251,2.10479125,2108.0,2107.1,1.18644963]
[1770517305646,0.918833,2107.9,2106.8,0.91577933]
[1770517305852,0.918833,2107.9,2107.0,1.18651684]
[1770517306161,1.18607078,2107.8,2107.0,1.18652112]
[1770517306764,2.10488624,2107.9,2107.0,1.18652112]
[1770517306968,1.1859938,2108.0,2107.0,2.10230045]
[1770517307373,0.918833,2107.9,2107.0,1.18652112]
[1770517307879,0.918833,2107.9,2106.9,1.18656898]
[1770517308257,2.10490378,2107.8,2106.8,2.10237437]
[1770517309953,2.10490378,2107.8,2106.8,1.18662913]
[1770517309954,0.918833,2107.7,2106.8,1.18662913]
[1770517310430,0.918833,2108.0,2106.7,0.91577933]
[1770517310548,2.10484751,2107.9,2106.7,0.91577933]
[1770517311056,0.918833,2107.8,2106.7,0.91577933]
[1770517311682,0.918833,2107.8,2106.7,0.91677933]
[1770517311865,0.002,2107.7,2106.7,0.91677933]
[1770517312590,0.002,2107.7,2106.9,0.91577933]
[1770517314702,0.002,2107.7,2107.0,2.10230045]
[1770517316163,0.002,2107.7,2107.1,0.91577933]
[1770517316691,0.002,2107.7,2106.8,0.91577933]
[1770517316893,0.920833,2107.7,2106.8,0.91577933]
[1770517317464,0.002,2107.7,2106.8,0.91577933]
[1770517318788,0.002,2107.7,2107.0,0.91577933]
[1770517320474,0.002,2107.7,2106.9,2.10235676]
[1770517320475,0.920833,2107.7,2106.9,2.10235676]
[1770517320812,0.002,2107.7,2107.0,2.10227508]
[1770517321097,0.002,2107.7,2107.0,2.10229596]
[1770517322305,0.002,2107.7,2107.1,0.91577933]
[1770517323003,0.002,2107.7,2107.2,2.10218783]
[1770517323697,0.002,2107.7,2107.3,0.91577933]
[1770517324288,0.002,2107.7,2107.2,2.10218783]
[1770517324801,0.002,2107.7,2107.3,0.91577933]
[1770517325381,0.002,2107.7,2107.4,1.1862959]
[1770517326891,2.05668356,2108.2,2107.4,1.1862959]
[1770517327492,2.05668356,2108.2,2107.4,2.10983305]
[1770517328582,0.870833,2108.2,2107.4,2.10983305]
[1770517328803,0.9527585,2108.8,2107.5,4.98162382]
[1770517329107,0.9527585,2108.6,2107.4,2.10983305]
[1770517329314,0.9527585,2108.4,2107.4,1.1862959]
[1770517330414,2.13854799,2108.3,2107.4,2.10983305]
[1770517330590,0.9527585,2108.3,2107.5,0.92353715]
[1770517330986,0.9027585,2108.3,2107.5,0.92353715]
[1770517331292,0.9527585,2108.2,2107.3,2.10985898]
[1770517331690,0.9527585,2108.2,2107.1,5.6693188]
[1770517331903,0.9527585,2108.2,2107.2,1.18637348]
[1770517332114,0.9527585,2108.2,2107.2,1.1863897]
[1770517333110,0.900055,2108.0,2107.1,2.10995969]
[1770517333618,0.900055,2108.0,2107.1,1.18642254]
[1770517333817,0.900055,2108.0,2107.1,2.14544635]
[1770517335504,2.08606951,2107.9,2107.1,2.14544635]
[1770517335702,2.03606951,2107.9,2107.1,2.14544635]
[1770517336916,0.900055,2107.8,2107.1,2.14544635]
[1770517337123,0.900055,2107.9,2107.2,0.95902381]
[1770517337498,1.18584574,2108.2,2107.2,2.14538059]
[1770517337698,0.900055,2108.1,2107.3,0.001]
[1770517337896,0.900055,2107.9,2107.3,0.001]
[1770517340801,1.18798775,2108.0,2107.3,0.001]
[1770517341227,0.902055,2108.0,2107.3,0.001]
[1770517341927,0.902055,2108.0,2107.3,0.96002381]
[1770517342516,0.902055,2108.0,2107.4,1.1862959]
[1770517342702,2.08802025,2108.0,2107.3,2.14633581]
[1770517343430,2.08802025,2108.0,2107.3,1.187312]
[1770517343625,0.900055,2107.8,2107.3,0.001]
[1770517344911,0.900055,2107.6,2107.3,0.001]
[1770517345618,0.900055,2107.4,2106.7,0.001]
[1770517347109,2.08628064,2107.6,2106.8,0.95902381]
[1770517347631,1.18613898,2107.7,2106.9,0.95902381]
[1770517347802,2.08619398,2107.7,2106.9,0.95902381]
[1770517348207,0.900055,2107.6,2106.9,0.95902381]
[1770517349230,0.900055,2107.6,2106.7,1.18769008]
[1770517349231,0.900055,2107.6,2106.7,2.14671389]
[1770517349432,2.08628656,2107.6,2106.7,2.14671389]
[1770517349640,0.900055,2107.5,2106.7,2.14671389]
[1770517350635,0.900055,2107.5,2107.1,0.001]
[1770517350839,0.900055,2107.4,2107.1,0.001]
[1770517351343,2.08638637,2107.4,2107.1,0.001]
[1770517352208,0.900055,2107.3,2106.7,0.001]
[1770517353339,2.0864635,2107.2,2106.7,0.001]
[1770517353927,0.900055,2107.2,2106.7,0.001]
[1770517354325,0.900055,2107.1,2106.7,0.001]
[1770517355434,2.08653975,2107.1,2106.7,0.001]
[1770517356046,0.95396693,2107.0,2106.7,0.001]
[1770517356240,1.18648475,2107.1,2106.7,0.001]
[1770517356439,0.002,2107.7,2106.7,0.98998743]
[1770517356657,0.002,2107.7,2107.0,5.04919057]
[1770517356958,0.002,2107.7,2107.1,0.98898743]
[1770517357318,0.002,2107.7,2107.2,1.1864085]
[1770517357525,0.002,2107.7,2107.3,0.98898743]
[1770517357756,0.002,2107.9,2107.3,0.98898743]
[1770517358029,1.6581642,2109.0,2107.4,0.98898743]
[1770517358240,0.95396693,2108.9,2107.4,0.98898743]
[1770517359339,1.65815526,2109.0,2107.9,1.18601451]
[1770517359340,0.47274742,2109.0,2107.9,1.18601451]
[1770517359643,0.47274742,2109.0,2108.0,0.98898743]
[1770517360065,1.65814392,2109.0,2108.0,0.98898743]
[1770517360264,0.47274742,2109.0,2108.0,0.98898743]
[1770517360624,1.65814794,2109.0,2108.0,0.98898743]
[1770517361148,2.61211487,2109.0,2108.0,0.98898743]
[1770517361653,0.95396693,2108.9,2108.0,1.18590637]
[1770517363631,2.13944227,2108.9,2107.9,5.73301326]
[1770517364230,0.95396693,2108.8,2107.9,0.98898743]
[1770517364634,0.002,2108.7,2107.9,0.98898743]
[1770517365445,0.95596693,2108.7,2107.7,1.18609506]
[1770517365666,0.95396693,2108.5,2107.5,2.17519936]
[1770517365957,0.99440557,2108.3,2107.5,1.18623336]
[1770517366272,0.95396693,2108.3,2107.5,1.18621512]
[1770517366569,0.04043864,2108.5,2107.4,2.17526667]
[1770517366570,0.99440557,2108.5,2107.4,2.17526667]
[1770517366767,0.99440557,2108.5,2107.5,1.18623464]
[1770517367166,0.99440557,2108.5,2107.4,2.17524394]
[1770517367543,0.95396693,2108.5,2107.5,1.18622461]
[1770517367740,1.18571135,2108.5,2107.6,0.98898743]
[1770517368168,0.002,2108.7,2107.6,0.98898743]
[1770517368368,1.18759814,2108.7,2107.6,0.98898743]
[1770517368570,0.002,2108.7,2107.6,0.98898743]
[1770517368769,0.002,2108.7,2107.9,0.98898743]
[1770517369671,0.002,2108.7,2108.1,0.98898743]
[1770517370254,1.18472182,2110.2,2108.5,0.98898743]
[1770517370564,0.04043864,2109.9,2108.5,0.98898743]
[1770517370866,1.22516046,2110.2,2108.5,0.98898743]
[1770517371180,0.99440557,2109.9,2108.5,0.98898743]
[1770517371349,0.04043864,2109.5,2108.5,0.98898743]
[1770517371546,1.22556474,2109.5,2108.6,1.18562079]
[1770517371746,1.22558245,2109.5,2108.6,1.18562079]
[1770517371945,0.04043864,2109.2,2108.1,0.98898743]
[1770517372143,1.18494644,2109.8,2108.6,0.98898743]
[1770517372353,2.13891337,2109.8,2108.6,0.98898743]
[1770517373865,0.04043864,2109.6,2108.7,1.18556456]
[1770517374066,0.99440557,2109.6,2108.6,2.17457861]
[1770517374276,0.99440557,2109.6,2108.6,1.18559118]
[1770517374481,0.99440557,2109.6,2108.6,2.17457861]
[1770517374673,0.99440557,2109.6,2108.6,1.18559118]
[1770517374871,0.99440557,2109.6,2108.6,1.18561735]
[1770517375971,0.04043864,2109.3,2108.4,4.74287057]
[1770517376144,0.99440557,2109.3,2108.4,1.18573325]
[1770517377168,0.04043864,2109.0,2108.1,0.98898743]
[1770517377365,0.99440557,2109.0,2108.2,1.18579999]
[1770517377750,0.99440557,2109.0,2108.1,1.18587935]
[1770517377944,1.22587178,2109.0,2108.7,0.001]
[1770517378157,1.18538442,2109.1,2108.7,0.001]
[1770517380172,1.18528351,2109.2,2108.7,0.001]
[1770517380471,0.95396693,2109.1,2108.7,0.001]
[1770517380672,0.99440557,2108.9,2108.5,0.001]
[1770517380879,0.04043864,2108.6,2107.8,1.18604583]
[1770517381062,0.99440557,2108.9,2107.9,1.1860096]
[1770517381373,0.99440557,2108.9,2107.4,0.98898743]
[1770517381692,0.99440557,2108.9,2107.3,4.74526631]
[1770517381693,0.99440557,2108.9,2107.8,1.18606165]
[1770517381981,0.99440557,2108.9,2107.7,1.18609687]
[1770517382156,1.18567702,2108.5,2107.6,2.17513126]
[1770517382589,0.04043864,2108.3,2107.3,2.17530305]
[1770517382886,0.99440557,2108.3,2107.4,1.18628633]
[1770517383657,0.99440557,2108.3,2107.5,1.18622822]
[1770517384074,1.18567702,2108.5,2107.6,1.18618045]
[1770517384376,1.18567702,2108.5,2107.5,0.98898743]
[1770517384750,2.13964395,2108.5,2107.5,0.98898743]
[1770517384956,0.95396693,2108.2,2107.0,0.98898743]
[1770517385377,2.13964395,2108.5,2107.0,0.98898743]
[1770517385588,0.04043864,2108.3,2107.0,0.98898743]
[1770517386267,0.97739893,2108.4,2107.2,0.97046369]
[1770517386268,1.18575335,2108.4,2107.2,0.97046369]
[1770517386692,2.16315228,2108.4,2107.2,0.97046369]
[1770517386868,1.18575335,2108.4,2107.2,0.97046369]
[1770517387074,1.01783757,2108.3,2107.1,2.15692849]
[1770517387390,1.01783757,2108.3,2107.2,0.97046369]
[1770517387580,0.97739893,2108.3,2107.2,0.97046369]
[1770517388288,2.16324467,2108.2,2107.3,1.1863522]
[1770517389258,1.18582648,2108.3,2107.3,1.1863522]
[1770517389576,1.18582648,2108.3,2107.4,0.97046369]
[1770517389962,1.01783757,2109.1,2107.4,0.97046369]
[1770517390158,0.97739893,2108.7,2107.4,0.97046369]
[1770517390381,1.18562079,2108.6,2107.6,0.97046369]
[1770517390990,0.002,2108.3,2107.6,0.97046369]
[1770517392460,0.002,2108.3,2107.7,1.18612705]
[1770517393081,0.002,2108.3,2107.6,1.18614337]
[1770517393487,0.002,2108.3,2107.6,2.15535189]
[1770517395491,0.002,2108.3,2107.5,1.1861962]
[1770517395787,0.97383635,2108.3,2107.6,1.18614767]
[1770517396291,0.97383635,2108.3,2107.5,1.18621125]
[1770517396467,0.97383635,2108.3,2107.5,1.18620813]
[1770517396871,1.18584574,2108.2,2107.2,0.97020852]
[1770517397066,1.18584574,2108.2,2107.0,0.001]
[1770517397067,1.01227499,2107.7,2107.0,0.001]
[1770517397269,0.97183635,2107.7,2107.0,0.001]
[1770517397587,0.97183635,2107.9,2107.0,0.001]
[1770517398294,1.01227499,2107.7,2107.0,0.001]
[1770517398668,0.04043864,2107.7,2107.0,0.001]
[1770517398869,1.22661778,2107.7,2107.0,0.001]
[1770517399784,0.97183635,2107.6,2107.0,0.001]
[1770517400695,1.18611191,2107.8,2107.0,0.001]
[1770517402496,0.97183635,2107.7,2107.0,0.001]
[1770517403706,1.18618333,2107.6,2107.0,0.001]
[1770517404002,1.18618333,2107.6,2107.2,0.001]
[1770517404791,0.97183635,2107.5,2107.2,0.001]
[1770517407211,2.15812902,2107.5,2107.2,0.001]
[1770517407932,2.15812902,2107.5,2106.7,0.001]
[1770517407933,0.97183635,2107.2,2106.7,0.001]
[1770517408217,0.97183635,2107.2,2106.6,0.001]
[1770517408218,0.97183635,2107.0,2106.6,0.001]
[1770517408919,0.97183635,2107.0,2106.1,0.001]
[1770517409115,0.04043864,2106.8,2106.1,0.001]
[1770517409296,2.15852643,2106.7,2106.1,0.001]
[1770517410019,0.97183635,2106.6,2106.1,0.001]
[1770517410219,1.01227499,2106.5,2106.1,0.001]
[1770517410705,1.18669008,2106.7,2106.1,0.001]
[1770517410706,0.97183635,2106.6,2106.1,0.001]
[1770517411119,1.01227499,2106.5,2106.1,0.001]
[1770517411316,0.97183635,2106.3,2105.9,0.001]
[1770517412036,1.18684015,2106.5,2105.9,0.001]
[1770517412909,1.18669008,2106.7,2105.9,1.18811093]
[1770517413126,1.18669008,2106.7,2106.0,1.18708018]
[1770517413327,1.18669008,2106.7,2105.9,1.18809966]
[1770517413635,1.18669008,2106.7,2105.9,0.001]
[1770517414820,1.18669008,2106.7,2105.9,0.97020852]
[1770517415421,1.18652112,2107.0,2106.0,1.18708452]
[1770517415624,1.18652112,2107.0,2106.0,2.15629304]
[1770517416041,1.18652112,2107.0,2105.9,0.001]
[1770517416042,0.92377864,2106.6,2105.9,0.001]
[1770517416739,0.92377864,2106.8,2105.9,1.1881033]
[1770517417030,2.11029976,2107.0,2106.2,0.001]
[1770517417834,0.96421728,2106.8,2106.2,0.001]
[1770517418130,0.04043864,2106.8,2106.2,0.001]
[1770517418329,1.18652112,2107.0,2106.2,0.001]
[1770517422435,0.92377864,2106.9,2106.2,0.001]
[1770517423729,0.04043864,2106.7,2106.2,0.001]
[1770517424321,1.22714728,2106.7,2106.2,0.001]
[1770517425142,0.92377864,2106.3,2105.6,1.18830594]
[1770517425435,0.92377864,2106.3,2105.6,0.001]
[1770517426421,1.18708452,2106.0,2105.6,0.001]
[1770517426633,1.18701132,2106.2,2105.6,0.001]
[1770517427831,0.04043864,2106.3,2105.6,0.001]
[1770517428037,1.18689966,2106.4,2105.6,0.91201801]
[1770517428334,4.74723019,2106.5,2105.6,2.09928136]
[1770517428521,1.18657743,2106.9,2105.7,0.91201801]
[1770517428715,0.04043864,2106.7,2105.7,0.91201801]
[1770517429232,1.18657743,2106.9,2105.7,0.91201801]
[1770517429536,2.11035607,2106.9,2105.7,0.91201801]
[1770517429937,0.04043864,2106.7,2105.9,0.001]
[1770517430634,1.18674641,2106.6,2105.9,0.001]
[1770517431215,0.04043864,2106.4,2105.9,0.001]
[1770517431631,0.96421728,2106.4,2105.9,0.001]
[1770517432009,0.04043864,2106.3,2105.9,0.001]
[1770517432826,1.18697179,2106.2,2105.9,0.001]
[1770517433110,0.04043864,2106.0,2105.7,0.001]
[1770517433815,0.04043864,2106.0,2105.6,0.001]
[1770517433816,0.96421728,2106.0,2105.6,0.001]
[1770517435052,1.18714088,2105.9,2105.6,0.001]
[1770517435353,0.04043864,2105.7,2105.5,0.001]
[1770517435828,0.04043864,2105.7,2105.1,0.001]
[1770517436354,0.96421728,2105.7,2105.1,0.001]
[1770517437056,1.18731003,2105.6,2105.1,0.001]
[1770517440360,1.18714088,2105.9,2105.1,0.001]